fUSD/lending_fUSD_20250502
["ID","MTS","AMOUNT","RATE_DAILY","PERIOD"]
[359657420,1746225048387,-450.0,0.00019984,2]
[359657421,1746225048397,-562.77,0.00019984,2]
[359657422,1746225048407,-450.0,0.00019984,2]
[359657423,1746225048416,-450.0,0.00019984,2]
[359657424,1746225048425,-450.0,0.00019984,2]
[359657425,1746225048435,-450.0,0.00019984,2]
[359657426,1746225048444,-450.0,0.00019984,2]
[359657427,1746225048457,-450.0,0.00019984,2]
[359657428,1746225048467,-450.0,0.00019984,2]
[359657429,1746225048476,-495.07,0.00019984,2]
[359657430,1746225048486,-450.0,0.00019984,2]
[359657431,1746225048495,-450.0,0.00019984,2]
[359657432,1746225048505,-450.0,0.00019984,2]
[359657433,1746225048515,-450.0,0.00019984,2]
[359657434,1746225048524,-450.0,0.00019984,2]
[359657435,1746225048534,-450.0,0.00019984,2]
[359657436,1746225048543,-450.0,0.00019984,2]
[359657437,1746225048554,-450.0,0.00019984,2]
[359657438,1746225048564,-720.62,0.00019984,2]
[359657439,1746225048573,-450.0,0.00019984,2]
[359657440,1746225048583,-450.0,0.00019984,2]
[359657441,1746225048592,-450.0,0.00019984,2]
[359657442,1746225048602,-450.0,0.00019984,2]
[359657443,1746225048611,-450.0,0.00019984,2]
[359657444,1746225048621,-450.0,0.00019984,2]
[359657445,1746225048631,-450.0,0.00019984,2]
[359657446,1746225048641,-450.0,0.00019984,2]
[359657447,1746225048651,-450.0,0.00019984,2]
[359657448,1746225048660,-549.73564454,0.00019984,2]
[359657449,1746225048669,-729.41,0.00019984,2]
[359657450,1746225048679,-559.7,0.00019984,2]
[359657451,1746225048688,-718.81,0.00019984,2]
[359657452,1746225048698,-450.0,0.00019984,2]
[359657453,1746225048708,-450.0,0.00019984,2]
[359657454,1746225048717,-450.0,0.00019984,2]
[359657455,1746225048727,-450.0,0.00019984,2]
[359657456,1746225048736,-450.0,0.00019984,2]
[359657457,1746225048746,-643.83,0.00019984,2]
[359657458,1746225048755,-450.0,0.00019984,2]
[359657459,1746225048764,-483.13,0.00019984,2]
[359657460,1746225048774,-337.06400703,0.00019984,2]
[359657461,1746225048783,-359.32732009,0.00019984,2]
[359657462,1746225048792,-450.0,0.00019984,2]
[359657463,1746225048802,-587.95,0.00019984,2]
[359657464,1746225048811,-1135.67,0.00019984,2]
[359657465,1746225048822,-450.0,0.00019984,2]
[359657466,1746225048831,-450.0,0.00019984,2]
[359657467,1746225048840,-450.0,0.00019984,2]
[359657468,1746225048851,-450.0,0.00019984,2]
[359657469,1746225048861,-450.0,0.00019984,2]
[359657470,1746225048870,-450.0,0.00019984,2]
[359657471,1746225048880,-450.0,0.00019984,2]
[359657472,1746225048889,-450.0,0.00019984,2]
[359657473,1746225048899,-450.0,0.00019984,2]
[359657474,1746225048908,-450.0,0.00019984,2]
[359657475,1746225048918,-450.0,0.00019984,2]
[359657476,1746225048928,-450.0,0.00019984,2]
[359657477,1746225048937,-380.38508656,0.00019984,2]
[359657478,1746225048947,-521.82,0.00019984,2]
[359657479,1746225048956,-450.0,0.00019984,2]
[359657480,1746225048966,-450.0,0.00019984,2]
[359657481,1746225048975,-450.0,0.00019984,2]
[359657482,1746225048985,-508.35,0.00019984,2]
[359657483,1746225048994,-450.0,0.00019984,2]
[359657484,1746225049004,-450.0,0.00019984,2]
[359657485,1746225049013,-450.0,0.00019984,2]
[359657486,1746225049023,-450.0,0.00019984,2]
[359657487,1746225049032,-450.0,0.00019984,2]
[359657488,1746225049042,-822.49,0.00019984,2]
[359657489,1746225049052,-361.68422331,0.00019984,2]
[359657490,1746225049061,-565.62,0.00019984,2]
[359657491,1746225049071,-450.0,0.00019984,2]
[359657492,1746225049081,-765.62,0.00019984,2]
[359657493,1746225049159,-450.0,0.00019984,2]
[359657494,1746225049169,-503.39,0.00019984,2]
[359657495,1746225049179,-949.34,0.00019984,2]
[359657496,1746225049189,-450.0,0.00019984,2]
[359657497,1746225049198,-450.0,0.00019984,2]
[359657498,1746225049208,-787.52,0.00019984,2]
[359657499,1746225049217,-489.72,0.00019984,2]
[359657500,1746225049227,-1000.16,0.00019984,2]
[359657501,1746225049236,-3655.2,0.00019984,2]
[359657502,1746225049245,-472.43,0.00019984,2]
[359657503,1746225049255,-580.69,0.00019984,2]
[359657504,1746225049264,-450.0,0.00019984,2]
[359657505,1746225049274,-524.34,0.00019984,2]
[359657506,1746225049283,-179.37068499,0.00019984,2]
[359657507,1746225049292,-450.0,0.00019984,2]
[359657508,1746225049302,-589.01,0.00019984,2]
[359657509,1746225049312,-450.0,0.00019984,2]
[359657510,1746225049321,-4547.24,0.00019984,2]
[359657511,1746225049331,-450.0,0.00019984,2]
[359657512,1746225049340,-490.67,0.00019984,2]
[359657513,1746225049349,-450.0,0.00019984,2]
[359657514,1746225049359,-4052.13,0.00019984,2]
[359657515,1746225049368,-450.0,0.00019984,2]
[359657516,1746225049379,-970.8,0.00019984,2]
[359657517,1746225049388,-450.0,0.00019984,2]
[359657518,1746225049398,-5829.53,0.00019984,2]
[359657519,1746225049407,-1054.48,0.00019984,2]
[359657520,1746225049416,-450.0,0.00019984,2]
[359657521,1746225049426,-473.37,0.00019984,2]
[359657522,1746225049435,-450.0,0.00019984,2]
[359657523,1746225049445,-450.0,0.00019984,2]
[359657524,1746225049456,-544.79,0.00019984,2]
[359657525,1746225049468,-450.0,0.00019984,2]
[359657526,1746225049477,-450.0,0.00019984,2]
[359657527,1746225049486,-450.0,0.00019984,2]
[359657528,1746225049495,-300.0,0.00019984,2]
[359657529,1746225049506,-450.0,0.00019984,2]
[359657530,1746225049516,-450.0,0.00019984,2]
[359657531,1746225049525,-650.05,0.00019984,2]
[359657532,1746225049535,-450.0,0.00019984,2]
[359657533,1746225049544,-488.59,0.00019984,2]
[359657534,1746225049554,-452.44,0.00019984,2]
[359657535,1746225049563,-531.42,0.00019984,2]
[359657536,1746225049572,-578.14,0.00019984,2]
[359657537,1746225049582,-4544.5,0.00019984,2]
[359657538,1746225049591,-450.0,0.00019984,2]
[359657539,1746225049601,-953.42,0.00019984,2]
[359657540,1746225049610,-450.0,0.00019984,2]
[359657541,1746225049620,-92040.51,0.00019984,2]
[359657542,1746225049629,-109358.47,0.00019984,2]
[359657543,1746225049638,-541.01,0.00019984,2]
[359657544,1746225049648,-766.73,0.00019984,2]
[359657545,1746225049657,-577.33,0.00019984,2]
[359657546,1746225049667,-5393.24,0.00019984,2]
[359657547,1746225049676,-450.0,0.00019984,2]
[359657548,1746225049685,-450.0,0.00019984,2]
[359657549,1746225049695,-450.0,0.00019984,2]
[359657550,1746225049704,-599.74,0.00019984,2]
[359657551,1746225049714,-450.0,0.00019984,2]
[359657552,1746225049723,-450.0,0.00019984,2]
[359657553,1746225049732,-842.01,0.00019984,2]
[359657554,1746225049741,-450.0,0.00019984,2]
[359657555,1746225049751,-29837.17,0.00019984,2]
[359657556,1746225049760,-450.0,0.00019984,2]
[359657557,1746225049770,-695.89,0.00019984,2]
[359657558,1746225049779,-450.0,0.00019984,2]
[359657559,1746225049788,-450.0,0.00019984,2]
[359657560,1746225049798,-450.0,0.00019984,2]
[359657561,1746225049808,-495.29,0.00019984,2]
[359657562,1746225049817,-450.0,0.00019984,2]
[359657563,1746225049826,-1950.39,0.00019984,2]
[359657564,1746225049835,-2274.35,0.00019984,2]
[359657565,1746225049845,-450.0,0.00019984,2]
[359657566,1746225049855,-450.0,0.00019984,2]
[359657567,1746225049864,-450.0,0.00019984,2]
[359657568,1746225049875,-450.0,0.00019984,2]
[359657569,1746225049884,-450.0,0.00019984,2]
[359657570,1746225049894,-17088.94,0.00019984,2]
[359657571,1746225049904,-450.0,0.00019984,2]
[359657572,1746225049914,-443.38565678,0.00019984,2]
[359657573,1746225049924,-450.0,0.00019984,2]
[359657574,1746225049934,-725.16,0.00019984,2]
[359657575,1746225049945,-530.14,0.00019984,2]
[359657576,1746225049955,-450.0,0.00019984,2]
[359657577,1746225049964,-450.0,0.00019984,2]
[359657578,1746225049973,-586.18,0.00019984,2]
[359657579,1746225049983,-450.0,0.00019984,2]
[359657580,1746225049993,-1560.92,0.00019984,2]
[359657581,1746225050003,-450.0,0.00019984,2]
[359657582,1746225050012,-450.0,0.00019984,2]
[359657583,1746225050022,-450.0,0.00019984,2]
[359657584,1746225050031,-450.0,0.00019984,2]
[359657585,1746225050041,-716.74,0.00019984,2]
[359657586,1746225050050,-450.0,0.00019984,2]
[359657587,1746225050059,-1872.19,0.00019984,2]
[359657588,1746225050069,-450.0,0.00019984,2]
[359657589,1746225050078,-2655.48,0.00019984,2]
[359657590,1746225050088,-544.29,0.00019984,2]
[359657591,1746225050097,-450.0,0.00019984,2]
[359657592,1746225050107,-450.0,0.00019984,2]
[359657593,1746225050117,-551.38,0.00019984,2]
[359657594,1746225050127,-740.67,0.00019984,2]
[359657595,1746225050136,-3232.6,0.00019984,2]
[359657596,1746225050146,-450.0,0.00019984,2]
[359657597,1746225050155,-450.0,0.00019984,2]
[359657598,1746225050164,-450.0,0.00019984,2]
[359657599,1746225050174,-450.0,0.00019984,2]
[359657600,1746225050184,-450.0,0.00019984,2]
[359657601,1746225050193,-464.15,0.00019984,2]
[359657602,1746225050203,-450.0,0.00019984,2]
[359657603,1746225050212,-500.59,0.00019984,2]
[359657604,1746225050223,-1126.54,0.00019984,2]
[359657605,1746225050233,-450.0,0.00019984,2]
[359657606,1746225050243,-450.0,0.00019984,2]
[359657607,1746225050252,-760.55,0.00019984,2]
[359657608,1746225050261,-450.0,0.00019984,2]
[359657609,1746225050271,-1444.96,0.00019984,2]
[359657610,1746225050280,-450.0,0.00019984,2]
[359657611,1746225050290,-520.92,0.00019984,2]
[359657612,1746225050299,-592.21,0.00019984,2]
[359657613,1746225050309,-522.45,0.00019984,2]
[359657614,1746225050319,-450.0,0.00019984,2]
[359657615,1746225050328,-912.86,0.00019984,2]
[359657616,1746225050338,-450.0,0.00019984,2]
[359657617,1746225050348,-1147.3,0.00019984,2]
[359657618,1746225050358,-464.68,0.00019984,2]
[359657619,1746225050368,-450.0,0.00019984,2]
[359657620,1746225050378,-450.0,0.00019984,2]
[359657621,1746225050388,-450.0,0.00019984,2]
[359657622,1746225050397,-450.0,0.00019984,2]
[359657623,1746225050407,-789.27,0.00019984,2]
[359657624,1746225050416,-1832.0,0.00019985,2]
[359657625,1746225050426,-40649.36830193,0.00019985,2]
[359657626,1746225050435,-450.0,0.00019985,2]
[359657627,1746225050445,-450.0,0.00019985,2]
[359657628,1746225050456,-450.0,0.00019985,2]
[359657629,1746225050467,-450.0,0.00019985,2]
[359657630,1746225050476,-450.0,0.00019985,2]
[359657631,1746225050485,-636.02,0.00019985,2]
[359657632,1746225050495,-715.98,0.00019985,2]
[359657633,1746225050505,-511.18,0.00019985,2]
[359657634,1746225050515,-526.89,0.00019985,2]
[359657635,1746225050524,-450.0,0.00019985,2]
[359657636,1746225050534,-1086.35,0.00019985,2]
[359657637,1746225050544,-450.0,0.00019985,2]
[359657638,1746225050553,-592.77,0.00019985,2]
[359657639,1746225050563,-1535.85,0.00019985,2]
[359657640,1746225050573,-735.44,0.00019985,2]
[359657641,1746225050582,-450.0,0.00019985,2]
[359657642,1746225050592,-520.65,0.00019985,2]
[359657643,1746225050601,-560.49,0.00019985,2]
[359657644,1746225050610,-450.0,0.00019985,2]
[359657645,1746225050620,-629.92,0.00019985,2]
[359657646,1746225050629,-1759.0,0.00019985,2]
[359657647,1746225050639,-603.9,0.00019985,2]
[359657648,1746225050648,-779.58,0.00019985,2]
[359657649,1746225050658,-450.0,0.00019985,2]
[359657650,1746225050668,-932.54,0.00019985,2]
[359657651,1746225050677,-450.0,0.00019985,2]
[359657652,1746225050686,-1172.17,0.00019985,2]
[359657653,1746225050696,-458.77,0.00019985,2]
[359657654,1746225050706,-568.19,0.00019985,2]
[359657655,1746225050716,-1547.61,0.00019985,2]
[359657656,1746225050726,-637.09,0.00019985,2]
[359657657,1746225050736,-450.0,0.00019985,2]
[359657658,1746225050746,-450.0,0.00019985,2]
[359657659,1746225050756,-450.0,0.00019985,2]
[359657660,1746225050765,-2413.88,0.00019985,2]
[359657661,1746225050775,-1056.31,0.00019985,2]
[359657662,1746225050784,-2208.43,0.00019985,2]
[359657663,1746225050793,-9270.4697247,0.00019986,2]
[359657664,1746225050803,-60290.0573755,0.00019986,2]
[359657665,1746225050812,-36159.3787471,0.00019986,2]
[359657666,1746225050821,-11913.6583116,0.00019986,2]
[359657667,1746225050831,-230471.6189859,0.00019986,2]
[359657668,1746225050840,-20983.062405,0.00019986,2]
[359657669,1746225050850,-427.30390379,0.00019986,2]
[359657670,1746225050859,-150.0,0.00019988,2]
[359657671,1746225050868,-500.0,0.00019988,2]
[359657672,1746225050878,-423.0,0.00019988,2]
[359657673,1746225050887,-150.0,0.00019988,2]
[359657674,1746225050896,-500.0,0.00019988,2]
[359657675,1746225050905,-150.0,0.00019988,2]
[359657676,1746225050915,-500.0,0.00019988,2]
[359657677,1746225050925,-500.0,0.00019988,2]
[359657678,1746225050935,-150.0,0.00019988,2]
[359657679,1746225050945,-150.0,0.00019988,2]
[359657680,1746225050955,-437.0,0.00019988,2]
[359657681,1746225050964,-500.0,0.00019988,2]
[359657682,1746225050973,-500.0,0.00019988,2]
[359657683,1746225050982,-500.0,0.00019988,2]
[359657684,1746225050992,-500.0,0.00019988,2]
[359657685,1746225051002,-500.0,0.00019988,2]
[359657686,1746225051011,-150.0,0.00019988,2]
[359657687,1746225051021,-1074.92705239,0.0001999,2]
[359657688,1746225051030,-1074.92705239,0.0001999,2]
[359657689,1746225051039,-500.0,0.00019999,2]
[359657690,1746225051048,-675.05638042,0.00019999,2]
[359657691,1746225051058,-500.0,0.00019999,2]
[359657692,1746225051067,-295.29190419,0.00019999,2]
[359657693,1746225051077,-300.0,0.00019999,2]
[359657694,1746225051086,-300.0,0.00019999,2]
[359657695,1746225051095,-1000.0,0.00019999,2]
[359657696,1746225051104,-259.59690718,0.0002,2]
[359657697,1746225051114,-539939.9504825,0.0002,2]
[359657698,1746225051123,-1954366.26926571,0.0002,2]
[359657699,1746225051952,-458.81000002,0.00019709,2]
[359657700,1746225051963,-372.163168,0.00019709,2]
[359657701,1746225052827,250.0,0.00017,2]
[359657702,1746225052973,300.0,0.00019,2]
[359657703,1746225531536,21071.43,0.00018756,2]
[359657704,1746225604112,475.89,0.00018871,2]
[359657705,1746225618518,200.0,0.00018873,2]
[359657706,1746225747931,458.75267,0.0002,23]
[359657707,1746225804406,178.7011493,0.0002,23]
[359657708,1746225847191,382.29389,0.0002,23]
[359657709,1746225950196,565.14,0.00016824,2]
[359657710,1746225950397,565.14,0.00019088,2]
[359657711,1746225997238,1000.0,0.00018734,2]
[359657713,1746226102149,7780.52703837,0.00018965,2]
[359657714,1746226152744,382.29389,0.000248,34]
[359657715,1746226153173,382.29389,0.000273,39]
[359657716,1746226153217,382.29389,0.000298,44]
[359657721,1746226231485,-487.56775065,0.00019608,2]
[359657722,1746226231497,-575.40914099,0.00019608,2]
[359657723,1746226231523,-519.20423304,0.00019608,2]
[359657724,1746226231534,-551.45587223,0.00019608,2]
[359657725,1746226231557,-291.26119028,0.00019608,2]
[359657726,1746226231568,-1094.23074267,0.00019608,2]
[359657727,1746226231579,-2582.93632561,0.00019608,2]
[359657728,1746226231589,-1200.0,0.00019609,2]
[359657729,1746226231598,-300.0,0.00019609,2]
[359657730,1746226231608,-250.0,0.0001961,2]
[359657731,1746226231617,-3504.19567125,0.0001961,2]
[359657732,1746226231627,-255.16095604,0.0001961,2]
[359657733,1746226231637,-200.0,0.00019626,2]
[359657734,1746226231646,-197.81690689,0.0001964,2]
[359657735,1746226231663,-3958.85,0.0001964,2]
[359657736,1746226231684,-935.37828518,0.0001964,2]
[359657737,1746226231696,-1010.02006331,0.0001964,2]
[359657738,1746226231706,-1134.99993869,0.00019642,2]
[359657739,1746226231782,-539.75,0.00019642,2]
[359657741,1746226231793,-250.28547636,0.00019642,2]
[359658010,1746226237584,-1100.0,0.00019642,2]
[359658011,1746226237595,-261.62406475,0.00019642,2]
[359658012,1746226237607,-217.53619145,0.00019642,2]
[359658013,1746226237617,-528.49171646,0.00019673,2]
[359658014,1746226237789,-795.48188009,0.00019673,2]
[359658017,1746226239714,-322.25948855,0.00019673,2]
[359658018,1746226239815,-4455.83217028,0.00019673,2]
[359658019,1746226239826,-3504.19567125,0.00019674,2]
[359658020,1746226239837,-6102.06525538,0.00019705,2]
[359658021,1746226239848,-3504.19567125,0.00019707,2]
[359658022,1746226239858,-500.0,0.00019707,2]
[359658023,1746226239868,-500.0,0.00019707,2]
[359658024,1746226239879,-500.0,0.00019707,2]
[359658025,1746226239888,-500.0,0.00019707,2]
[359658026,1746226239897,-500.0,0.00019707,2]
[359658027,1746226239906,-500.0,0.00019707,2]
[359658028,1746226239917,-500.0,0.00019707,2]
[359658029,1746226239926,-500.0,0.00019707,2]
[359658030,1746226239936,-500.0,0.00019707,2]
[359658031,1746226239946,-500.0,0.00019707,2]
[359658032,1746226239955,-500.0,0.00019707,2]
[359658033,1746226239964,-500.0,0.00019707,2]
[359658034,1746226239975,-500.0,0.00019707,2]
[359658035,1746226239986,-500.0,0.00019707,2]
[359658036,1746226239995,-500.0,0.00019707,2]
[359658037,1746226240005,-500.0,0.00019707,2]
[359658038,1746226240015,-500.0,0.00019707,2]
[359658039,1746226240024,-500.0,0.00019707,2]
[359658040,1746226240033,-598.28234615,0.00019707,2]
[359658041,1746226240043,-500.0,0.00019707,2]
[359658042,1746226240052,-500.0,0.00019707,2]
[359658043,1746226240062,-500.0,0.00019707,2]
[359658044,1746226240072,-500.0,0.00019707,2]
[359658045,1746226240082,-280.25488685,0.00019707,2]
[359658046,1746226240091,-450.0,0.00019707,2]
[359658047,1746226240103,-450.0,0.00019707,2]
[359658048,1746226240114,-517.22,0.00019708,2]
[359658049,1746226240123,-450.0,0.00019708,2]
[359658050,1746226240133,-450.0,0.00019708,2]
[359658051,1746226240143,-450.0,0.00019708,2]
[359658052,1746226240152,-450.0,0.00019708,2]
[359658053,1746226240162,-599.03,0.00019708,2]
[359658054,1746226240171,-450.0,0.00019708,2]
[359658055,1746226240181,-450.0,0.00019708,2]
[359658056,1746226240191,-450.0,0.00019708,2]
[359658057,1746226240201,-450.0,0.00019708,2]
[359658058,1746226240210,-450.0,0.00019708,2]
[359658059,1746226240219,-450.0,0.00019708,2]
[359658060,1746226240229,-298.56431226,0.00019708,2]
[359658061,1746226240239,-450.0,0.00019708,2]
[359658062,1746226240249,-450.0,0.00019708,2]
[359658063,1746226240259,-450.0,0.00019708,2]
[359658064,1746226240269,-450.0,0.00019708,2]
[359658065,1746226240279,-450.0,0.00019708,2]
[359658066,1746226240289,-450.0,0.00019708,2]
[359658067,1746226240298,-450.0,0.00019708,2]
[359658068,1746226240308,-450.0,0.00019708,2]
[359658069,1746226240318,-450.0,0.00019708,2]
[359658070,1746226240327,-450.0,0.00019708,2]
[359658071,1746226240336,-450.0,0.00019708,2]
[359658072,1746226240346,-846.53,0.00019708,2]
[359658073,1746226240356,-450.0,0.00019708,2]
[359658074,1746226240366,-621.5,0.00019708,2]
[359658075,1746226240376,-450.0,0.00019708,2]
[359658076,1746226240386,-450.0,0.00019708,2]
[359658077,1746226240395,-450.0,0.00019708,2]
[359658078,1746226240404,-450.0,0.00019708,2]
[359658079,1746226240413,-460.60661297,0.00019708,2]
[359658080,1746226240423,-450.0,0.00019708,2]
[359658081,1746226240432,-450.0,0.00019708,2]
[359658082,1746226240442,-450.0,0.00019708,2]
[359658083,1746226240451,-450.0,0.00019708,2]
[359658084,1746226240461,-450.0,0.00019708,2]
[359658085,1746226240471,-450.0,0.00019708,2]
[359658086,1746226240480,-450.0,0.00019708,2]
[359658087,1746226240490,-450.0,0.00019708,2]
[359658088,1746226240500,-450.0,0.00019708,2]
[359658089,1746226240510,-450.0,0.00019708,2]
[359658090,1746226240521,-450.0,0.00019708,2]
[359658091,1746226240530,-450.0,0.00019708,2]
[359658092,1746226240539,-450.0,0.00019708,2]
[359658093,1746226240549,-450.0,0.00019708,2]
[359658094,1746226240559,-450.0,0.00019708,2]
[359658095,1746226240568,-450.0,0.00019708,2]
[359658096,1746226240578,-450.0,0.00019708,2]
[359658097,1746226240587,-450.0,0.00019708,2]
[359658098,1746226240598,-450.0,0.00019708,2]
[359658099,1746226240607,-450.0,0.00019708,2]
[359658100,1746226240617,-246.53420213,0.00019708,2]
[359658101,1746226240627,-450.0,0.00019708,2]
[359658102,1746226240636,-450.0,0.00019708,2]
[359658103,1746226240646,-450.0,0.00019708,2]
[359658104,1746226240655,-359.32732009,0.00019708,2]
[359658105,1746226240665,-450.0,0.00019708,2]
[359658106,1746226240675,-450.0,0.00019708,2]
[359658107,1746226240684,-450.0,0.00019708,2]
[359658108,1746226240693,-450.0,0.00019708,2]
[359658109,1746226240702,-450.0,0.00019708,2]
[359658110,1746226240712,-450.0,0.00019708,2]
[359658111,1746226240721,-450.0,0.00019708,2]
[359658112,1746226240731,-926.063764,0.00019708,2]
[359658113,1746226240740,-250.0,0.00019708,2]
[359658114,1746226240751,-450.0,0.00019708,2]
[359658115,1746226240760,-450.0,0.00019708,2]
[359658116,1746226240769,-628.77922,0.00019708,2]
[359658117,1746226240779,-380.38508656,0.00019708,2]
[359658118,1746226240788,-450.0,0.00019708,2]
[359658119,1746226240798,-450.0,0.00019708,2]
[359658120,1746226240807,-450.0,0.00019708,2]
[359658121,1746226240816,-450.0,0.00019708,2]
[359658122,1746226240826,-450.0,0.00019708,2]
[359658123,1746226240837,-450.0,0.00019708,2]
[359658124,1746226240847,-450.0,0.00019708,2]
[359658125,1746226240856,-450.0,0.00019708,2]
[359658126,1746226240865,-720.44,0.00019708,2]
[359658127,1746226240875,-450.0,0.00019708,2]
[359658128,1746226240885,-450.0,0.00019708,2]
[359658129,1746226240895,-450.0,0.00019708,2]
[359658130,1746226240904,-526.42,0.00019708,2]
[359658131,1746226240915,-7558.35,0.00019708,2]
[359658132,1746226240924,-450.0,0.00019708,2]
[359658133,1746226240935,-450.0,0.00019708,2]
[359658134,1746226240944,-798.92,0.00019708,2]
[359658135,1746226240954,-909.79,0.00019708,2]
[359658136,1746226240963,-450.0,0.00019708,2]
[359658137,1746226240973,-958.49,0.00019708,2]
[359658138,1746226240982,-450.0,0.00019708,2]
[359658139,1746226240992,-542.05,0.00019708,2]
[359658140,1746226241003,-450.0,0.00019708,2]
[359658141,1746226241016,-374.24,0.00019708,2]
[359658142,1746226241026,-450.0,0.00019708,2]
[359658143,1746226241035,-450.0,0.00019708,2]
[359658144,1746226241045,-5830.02,0.00019708,2]
[359658145,1746226241054,-471.64,0.00019708,2]
[359658146,1746226241064,-450.0,0.00019708,2]
[359658147,1746226241074,-463.07,0.00019708,2]
[359658148,1746226241083,-408.15101168,0.00019708,2]
[359658149,1746226241093,-450.0,0.00019708,2]
[359658150,1746226241103,-470.22,0.00019708,2]
[359658151,1746226241113,-450.0,0.00019708,2]
[359658152,1746226241123,-450.0,0.00019708,2]
[359658153,1746226241132,-450.0,0.00019708,2]
[359658154,1746226241142,-450.0,0.00019708,2]
[359658155,1746226241151,-453.64,0.00019708,2]
[359658156,1746226241161,-450.0,0.00019708,2]
[359658157,1746226241170,-450.0,0.00019708,2]
[359658158,1746226241180,-450.0,0.00019708,2]
[359658159,1746226241189,-970.8,0.00019708,2]
[359658160,1746226241199,-450.0,0.00019708,2]
[359658161,1746226241208,-522.09,0.00019708,2]
[359658162,1746226241217,-450.0,0.00019708,2]
[359658163,1746226241226,-450.0,0.00019708,2]
[359658164,1746226241236,-450.0,0.00019708,2]
[359658165,1746226241246,-450.0,0.00019708,2]
[359658166,1746226241256,-450.0,0.00019708,2]
[359658167,1746226241266,-450.0,0.00019708,2]
[359658168,1746226241275,-468.23,0.00019708,2]
[359658169,1746226241284,-450.0,0.00019708,2]
[359658170,1746226241294,-599.84,0.00019708,2]
[359658171,1746226241303,-450.0,0.00019708,2]
[359658172,1746226241313,-450.0,0.00019708,2]
[359658173,1746226241323,-450.0,0.00019708,2]
[359658174,1746226241332,-450.0,0.00019708,2]
[359658175,1746226241342,-450.0,0.00019708,2]
[359658176,1746226241351,-696.06,0.00019708,2]
[359658177,1746226241361,-450.0,0.00019708,2]
[359658178,1746226241371,-542.01,0.00019708,2]
[359658179,1746226241380,-450.0,0.00019708,2]
[359658180,1746226241390,-450.0,0.00019708,2]
[359658181,1746226241399,-450.0,0.00019708,2]
[359658182,1746226241409,-450.0,0.00019708,2]
[359658183,1746226241418,-572.8,0.00019708,2]
[359658184,1746226241428,-2274.7,0.00019708,2]
[359658185,1746226241438,-450.0,0.00019708,2]
[359658186,1746226241448,-450.0,0.00019708,2]
[359658187,1746226241458,-450.0,0.00019708,2]
[359658188,1746226241467,-534.16,0.00019708,2]
[359658189,1746226241478,-450.0,0.00019708,2]
[359658190,1746226241489,-500.0,0.00019708,2]
[359658191,1746226241499,-450.0,0.00019708,2]
[359658192,1746226241508,-495.33,0.00019708,2]
[359658193,1746226241518,-450.0,0.00019708,2]
[359658194,1746226241528,-450.0,0.00019708,2]
[359658195,1746226241538,-450.0,0.00019708,2]